fUST/lending_fUST_20240613
["ID","MTS","AMOUNT","RATE_DAILY","PERIOD"]
[329327864,1718248235100,-514.67661298,0.00016438,2]
[329327866,1718248235112,-423.70658489,0.00016438,2]
[329327868,1718248235130,-500.0,0.00016438,2]
[329327870,1718248235146,-500.0,0.00016438,2]
[329327872,1718248235166,-500.0,0.00016438,2]
[329327874,1718248235198,-500.0,0.00016438,2]
[329327876,1718248235234,-500.0,0.00016438,2]
[329327877,1718248235255,-500.0,0.00016438,2]
[329327880,1718248235271,-500.0,0.00016438,2]
[329327881,1718248235292,-643.67,0.00016438,2]
[329327883,1718248235314,-500.0,0.00016438,2]
[329327885,1718248235327,-500.0,0.00016438,2]
[329327886,1718248235358,-505.28495345,0.00016438,2]
[329327888,1718248235375,-500.0,0.00016438,2]
[329327889,1718248235390,-500.0,0.00016438,2]
[329327891,1718248235401,-500.0,0.00016438,2]
[329327893,1718248235418,-500.0,0.00016438,2]
[329327895,1718248235429,-500.0,0.00016438,2]
[329327897,1718248235453,-500.0,0.00016438,2]
[329327899,1718248235464,-500.0,0.00016438,2]
[329327900,1718248235474,-500.0,0.00016438,2]
[329327902,1718248235492,-500.0,0.00016438,2]
[329327905,1718248235507,-500.0,0.00016438,2]
[329327907,1718248235530,-500.0,0.00016438,2]
[329327909,1718248235552,-500.0,0.00016438,2]
[329327911,1718248235567,-500.0,0.00016438,2]
[329327913,1718248235581,-910.12188206,0.00016438,2]
[329327989,1718248236948,-194.99811794,0.00016438,2]
[329327991,1718248236968,-463.12856615,0.00016438,2]
[329327993,1718248236993,-36.87143385,0.00016438,2]
[329327995,1718248237011,-486.60315402,0.00016438,2]
[329328091,1718248241127,-897.72684598,0.00016438,2]
[329328092,1718248241143,-381.99959018,0.00016438,2]
[329328093,1718248241170,-118.00040982,0.00016438,2]
[329328094,1718248241194,-500.0,0.00016438,2]
[329328095,1718248241212,-136.41847054,0.00016438,2]
[329328098,1718248241602,-546.21152946,0.00016438,2]
[329328099,1718248241619,-1234.43,0.00016438,2]
[329328100,1718248241637,-850.78,0.00016438,2]
[329328101,1718248241656,-500.0,0.00016438,2]
[329328102,1718248241670,-225.56201685,0.00016438,2]
[329328103,1718248241681,-500.0,0.00016438,2]
[329328104,1718248241693,-500.0,0.00016438,2]
[329328105,1718248241706,-500.0,0.00016438,2]
[329328106,1718248241718,-816.1,0.00016438,2]
[329328107,1718248241732,-375.61125333,0.00016438,2]
[329328108,1718248241746,-320.32864345,0.00016438,2]
[329328109,1718248241763,-1138.21,0.00016438,2]
[329328110,1718248241775,-500.0,0.00016438,2]
[329328111,1718248241793,-1321.72959991,0.00016438,2]
[329328226,1718248244281,-342.80499812,0.00016438,2]
[329328318,1718248246014,-533.58561713,0.00016438,2]
[329328320,1718248246046,-354.2,0.00016438,2]
[329328325,1718248246144,-509.31978484,0.00016438,2]
[329328327,1718248246164,-500.0,0.00016438,2]
[329328330,1718248246187,-500.0,0.00016438,2]
[329328332,1718248246225,-626.75,0.00016438,2]
[329328334,1718248246236,-670.14,0.00016438,2]
[329328336,1718248246255,-500.0,0.00016438,2]
[329328337,1718248246280,-500.0,0.00016438,2]
[329328339,1718248246292,-4142.23,0.00016438,2]
[329328342,1718248246327,-5339.97,0.00016438,2]
[329328344,1718248246343,-1281.01,0.00016438,2]
[329328346,1718248246358,-478.42201778,0.00016438,2]
[329328348,1718248246379,-503.63,0.00016438,2]
[329328350,1718248246407,-1151.7,0.00016438,2]
[329328352,1718248246429,-698.7,0.00016438,2]
[329328354,1718248246454,-500.0,0.00016438,2]
[329328356,1718248246471,-500.0,0.00016438,2]
[329328358,1718248246486,-1605.72590538,0.00016438,2]
[329328568,1718248250176,-400.97409462,0.00016438,2]
[329328570,1718248250188,-529.99,0.00016438,2]
[329328572,1718248250198,-321.44572304,0.00016438,2]
[329328574,1718248250210,-500.0,0.00016438,2]
[329328575,1718248250224,-500.0,0.00016438,2]
[329328576,1718248250234,-500.0,0.00016438,2]
[329328577,1718248250248,-500.0,0.00016711,2]
[329328578,1718248250267,-500.0,0.00016711,2]
[329328579,1718248250283,-500.0,0.00016711,2]
[329328580,1718248250301,-500.0,0.00016712,2]
[329328581,1718248250312,-500.0,0.00016712,2]
[329328583,1718248250323,-500.0,0.00016712,2]
[329328584,1718248250337,-500.0,0.00016712,2]
[329328587,1718248250351,-500.0,0.00016712,2]
[329328589,1718248250375,-500.0,0.00016712,2]
[329328591,1718248250390,-500.0,0.00016712,2]
[329328593,1718248250408,-500.0,0.00016712,2]
[329328595,1718248250438,-332.43295669,0.00016712,2]
[329328896,1718248315639,1113.66678494,9.999e-05,2]
[329328897,1718248315730,10372.06167226,9.999e-05,2]
[329328898,1718248328566,1500.0,0.00021917,30]
[329328899,1718248328909,1500.0,0.00022739,30]
[329328900,1718248359928,150.0,0.0001215,2]
[329328901,1718248772187,720.77399838,0.00016986,15]
[329328902,1718248893567,360.38699919,0.00016986,15]
[329328903,1718248945980,1500.0,0.00021917,30]
[329328904,1718248946404,1500.0,0.00022739,30]
[329328905,1718249011951,180.19349959,0.00016986,15]
[329328906,1718249131861,180.19349959,0.00016712,15]
[329328908,1718249315457,10000.0,0.00023,30]
[329328909,1718249328510,10000.0,0.00023,30]
[329328910,1718249346235,10000.0,0.00023,30]
[329328911,1718249402526,8408.0,0.00023,30]
[329328986,1718249434572,-3000.0,0.00014865,2]
[329328988,1718249434596,-250.0,0.00014865,2]
[329328990,1718249434614,-525.94041428,0.00015383,2]
[329328992,1718249434641,-300.0,0.00015384,2]
[329328994,1718249434654,-2396.86375771,0.00015385,2]
[329329002,1718249434794,-21911.49835249,0.00015385,2]
[329329004,1718249434806,-522.77847275,0.00016338,2]
[329329006,1718249434822,-500.0,0.00016438,2]
[329329009,1718249434850,-500.0,0.00016438,2]
[329329011,1718249434900,-500.0,0.00016438,2]
[329329012,1718249434915,-500.0,0.00016438,2]
[329329014,1718249434959,-500.0,0.00016438,2]
[329329016,1718249434984,-500.0,0.00016438,2]
[329329019,1718249435033,-500.0,0.00016438,2]
[329329022,1718249435072,-174.26548757,0.00016438,2]
[329329025,1718249435108,-500.0,0.00016438,2]
[329329027,1718249435120,-500.0,0.00016438,2]
[329329029,1718249435136,-500.0,0.00016438,2]
[329329030,1718249435148,-500.0,0.00016438,2]
[329329032,1718249435162,-500.0,0.00016438,2]
[329329034,1718249435174,-500.0,0.00016438,2]
[329329036,1718249435189,-500.0,0.00016438,2]
[329329038,1718249435202,-500.0,0.00016438,2]
[329329039,1718249435213,-500.0,0.00016438,2]
[329329041,1718249435226,-500.0,0.00016438,2]
[329329043,1718249435243,-500.0,0.00016438,2]
[329329045,1718249435255,-562.66,0.00016438,2]
[329329047,1718249435275,-509.72942073,0.00016438,2]
[329329049,1718249435300,-628.84927997,0.00016438,2]
[329329051,1718249435318,-505.62757351,0.00016438,2]
[329329053,1718249435357,-284.59141304,0.00016438,2]
[329329361,1718249443892,-215.40858696,0.00016438,2]
[329329363,1718249443920,-500.0,0.00016438,2]
[329329365,1718249443936,-500.0,0.00016438,2]
[329329367,1718249443982,-176.49226442,0.00016438,2]
[329329368,1718249444022,-500.0,0.00016438,2]
[329329370,1718249444054,-500.0,0.00016438,2]
[329329371,1718249444119,-500.0,0.00016438,2]
[329329372,1718249444130,-500.0,0.00016438,2]
[329329373,1718249444142,-500.0,0.00016438,2]
[329329374,1718249444154,-503.51431149,0.00016438,2]
[329329375,1718249444173,-500.0,0.00016438,2]
[329329376,1718249444184,-500.0,0.00016438,2]
[329329377,1718249444209,-500.0,0.00016438,2]
[329329378,1718249444233,-500.0,0.00016438,2]
[329329379,1718249444249,-500.0,0.00016438,2]
[329329380,1718249444261,-500.0,0.00016438,2]
[329329381,1718249444274,-500.0,0.00016438,2]
[329329382,1718249444292,-500.0,0.00016438,2]
[329329383,1718249444304,-500.0,0.00016438,2]
[329329384,1718249444323,-518.59,0.00016438,2]
[329329385,1718249444359,-500.0,0.00016438,2]
[329329386,1718249444373,-500.0,0.00016438,2]
[329329387,1718249444428,-500.0,0.00016438,2]
[329329388,1718249444444,-420.27831383,0.00016438,2]
[329329408,1718249447120,-25.76659925,0.00016438,2]
[329329412,1718249447149,-53.95508692,0.00016438,2]
[329329414,1718249447169,-510.58605869,0.00016438,2]
[329329417,1718249447188,-500.0,0.00016438,2]
[329329420,1718249447210,-450.62838417,0.00016438,2]
[329329455,1718249449375,-107.75756842,0.00016438,2]
[329329456,1718249449393,-500.0,0.00016438,2]
[329329457,1718249449408,-500.0,0.00016438,2]
[329329458,1718249449424,-500.0,0.00016438,2]
[329329459,1718249449435,-505.50268366,0.00016438,2]
[329329460,1718249449449,-516.68145026,0.00016438,2]
[329329461,1718249449460,-500.0,0.00016438,2]
[329329462,1718249449484,-216.28661528,0.00016438,2]
[329329465,1718249449641,-500.0,0.00016438,2]
[329329467,1718249449653,-506.02244042,0.00016438,2]
[329329469,1718249449665,-394.51617628,0.00016438,2]
[329329471,1718249449682,-500.0,0.00016438,2]
[329329473,1718249449693,-500.0,0.00016438,2]
[329329474,1718249449705,-500.0,0.00016438,2]
[329329476,1718249449717,-500.0,0.00016438,2]
[329329478,1718249449729,-512.27274315,0.00016438,2]
[329329479,1718249449740,-500.0,0.00016438,2]
[329329480,1718249449757,-500.0,0.00016438,2]
[329329481,1718249449768,-500.0,0.00016438,2]
[329329483,1718249449782,-500.0,0.00016438,2]
[329329485,1718249449802,-500.0,0.00016438,2]
[329329487,1718249449813,-500.0,0.00016438,2]
[329329488,1718249449824,-500.0,0.00016438,2]
[329329489,1718249449836,-736.48,0.00016438,2]
[329329490,1718249449850,-500.0,0.00016438,2]
[329329491,1718249449865,-515.12,0.00016438,2]
[329329492,1718249449878,-500.0,0.00016438,2]
[329329493,1718249449891,-500.0,0.00016438,2]
[329329494,1718249449902,-510.99609868,0.00016438,2]
[329329497,1718249449941,-500.0,0.00016438,2]
[329329499,1718249449956,-500.0,0.00016438,2]
[329329501,1718249449969,-500.0,0.00016438,2]
[329329502,1718249449994,-500.0,0.00016438,2]
[329329504,1718249450011,-412.27734649,0.00016438,2]
[329329506,1718249450026,-500.0,0.00016438,2]
[329329507,1718249450047,-500.0,0.00016438,2]
[329329508,1718249450061,-500.0,0.00016438,2]
[329329509,1718249450076,-500.0,0.00016438,2]
[329329510,1718249450097,-500.0,0.00016438,2]
[329329511,1718249450114,-500.0,0.00016438,2]
[329329513,1718249450133,-500.0,0.00016438,2]
[329329515,1718249450148,-500.0,0.00016438,2]
[329329516,1718249450173,-500.0,0.00016438,2]
[329329518,1718249450196,-500.0,0.00016438,2]
[329329519,1718249450209,-500.0,0.00016438,2]
[329329521,1718249450222,-500.0,0.00016438,2]
[329329522,1718249450236,-500.0,0.00016438,2]
[329329523,1718249450248,-500.0,0.00016438,2]
[329329524,1718249450270,-550.41,0.00016438,2]
[329329525,1718249450282,-500.0,0.00016438,2]
[329329526,1718249450303,-500.0,0.00016438,2]
[329329527,1718249450315,-500.0,0.00016438,2]
[329329529,1718249450325,-544.73747256,0.00016438,4]
[329329530,1718249450339,-1230.66,0.00016438,2]
[329329531,1718249450358,-500.0,0.00016438,2]
[329329532,1718249450380,-1510.62,0.00016438,2]
[329329533,1718249450393,-500.0,0.00016438,2]
[329329534,1718249450404,-562.09,0.00016438,2]
[329329535,1718249450436,-562.09,0.00016438,2]
[329329536,1718249450447,-500.0,0.00016438,2]
[329329537,1718249450459,-329.79625002,0.00016438,2]
[329329538,1718249450470,-1443.61,0.00016438,2]
[329329539,1718249450481,-745.54,0.00016438,2]
[329329540,1718249450492,-437.68237817,0.00016438,2]
[329329541,1718249450508,-500.0,0.00016438,2]
[329329542,1718249450524,-500.0,0.00016438,2]
[329329543,1718249450537,-500.0,0.00016438,2]
[329329544,1718249450551,-335.86494707,0.00016438,2]
[329329545,1718249450566,-950.73,0.00016438,2]
[329329546,1718249450578,-500.0,0.00016438,2]
[329329547,1718249450625,-500.0,0.00016438,2]
[329329548,1718249450646,-500.0,0.00016438,2]
[329329551,1718249450664,-500.0,0.00016438,2]
[329329553,1718249450681,-500.0,0.00016438,2]
[329329555,1718249450696,-500.0,0.00016438,2]
[329329556,1718249450713,-500.0,0.00016438,2]
[329329557,1718249450727,-500.0,0.00016438,2]
[329329558,1718249450756,-500.0,0.00016438,2]
[329329559,1718249450767,-1013.2,0.00016438,2]
[329329560,1718249450782,-500.0,0.00016438,2]
[329329561,1718249450797,-500.7461977,0.00016438,2]
[329329562,1718249450807,-2328.18,0.00016438,2]
[329329563,1718249450828,-500.0,0.00016438,2]
[329329564,1718249450840,-500.0,0.00016438,2]
[329329565,1718249450851,-500.0,0.00016438,2]
[329329566,1718249450870,-500.0,0.00016438,2]
[329329567,1718249450885,-3862.99,0.00016438,2]
[329329568,1718249450909,-500.0,0.00016438,2]
[329329569,1718249450930,-500.0,0.00016438,2]
[329329570,1718249450958,-464.1985087,0.00016438,2]
[329329571,1718249450972,-500.0,0.00016438,2]
[329329572,1718249450985,-500.0,0.00016438,2]
[329329573,1718249450997,-565.49,0.00016438,2]
[329329574,1718249451006,-500.0,0.00016438,2]
[329329575,1718249451022,-500.0,0.00016438,2]
[329329576,1718249451035,-500.0,0.00016438,2]
[329329577,1718249451049,-4979.71,0.00016438,2]
[329329578,1718249451063,-781.18,0.00016438,2]
[329329579,1718249451088,-1581.89,0.00016438,2]
[329329580,1718249451106,-500.0,0.00016438,2]
[329329581,1718249451117,-500.0,0.00016438,2]
[329329582,1718249451133,-500.0,0.00016438,2]
[329329583,1718249451144,-5982.95,0.00016438,2]
[329329584,1718249451155,-1423.37,0.00016438,2]
[329329585,1718249451170,-500.0,0.00016438,2]
[329329586,1718249451194,-500.0,0.00016438,2]
[329329587,1718249451205,-592.19,0.00016438,2]
[329329588,1718249451230,-500.0,0.00016438,2]
[329329589,1718249451246,-500.0,0.00016438,2]
[329329590,1718249451259,-659.79,0.00016438,2]
[329329591,1718249451275,-500.0,0.00016438,2]
[329329592,1718249451285,-500.0,0.00016438,2]
[329329593,1718249451301,-500.0,0.00016438,2]
[329329594,1718249451313,-500.0,0.00016438,2]
[329329595,1718249451325,-500.0,0.00016438,2]
[329329596,1718249451339,-500.0,0.00016438,2]
[329329597,1718249451376,-500.0,0.00016438,2]
[329329598,1718249451412,-500.0,0.00016438,2]
[329329599,1718249451432,-500.0,0.00016438,2]
[329329600,1718249451449,-500.0,0.00016438,2]
[329329601,1718249451463,-500.0,0.00016438,2]
[329329602,1718249451487,-500.0,0.00016438,2]
[329329603,1718249451500,-500.0,0.00016438,2]
[329329604,1718249451517,-2304.96,0.00016438,2]
[329329605,1718249451534,-500.0,0.00016438,2]
[329329606,1718249451555,-500.0,0.00016438,2]
[329329607,1718249451573,-500.0,0.00016438,2]
[329329608,1718249451592,-500.0,0.00016438,2]
[329329609,1718249451607,-531.42432964,0.00016438,2]
[329329610,1718249451622,-500.0,0.00016438,2]
[329329611,1718249451637,-500.0,0.00016438,2]
[329329612,1718249451655,-500.0,0.00016438,2]
[329329613,1718249451684,-3552.71368236,0.00016487,2]
[329329614,1718249451862,-1701.77144583,0.00016487,2]
[329329615,1718249451878,-28.05289861,0.00016487,2]
[329329616,1718249451906,-153.0,0.000166,2]
[329329617,1718249451939,-1079.87277887,0.00016612,2]
[329329618,1718249451954,-150.0,0.00016694,2]
[329329619,1718249451970,-562.09,0.00016709,2]
[329329620,1718249451982,-500.0,0.0001671,2]
[329329621,1718249452009,-500.0,0.0001671,2]
[329329622,1718249452020,-500.0,0.0001671,2]
[329329623,1718249452030,-18343.5340877,0.00016711,2]
[329329624,1718249452042,-500.0,0.00016711,2]
[329329625,1718249452062,-500.0,0.00016711,2]
[329329626,1718249452072,-500.0,0.00016711,2]
[329329627,1718249452087,-562.09,0.00016711,2]
[329329628,1718249452105,-562.09,0.00016711,2]
[329329629,1718249452134,-500.0,0.00016711,2]
[329329630,1718249452149,-500.0,0.00016711,2]
[329329631,1718249452165,-502.70369893,0.00016712,2]
[329329632,1718249452177,-500.0,0.00016712,2]
[329329633,1718249452190,-500.0,0.00016712,2]
[329329634,1718249452214,-500.0,0.00016712,2]
[329329635,1718249452229,-500.0,0.00016712,2]
[329329636,1718249452240,-500.0,0.00016712,2]
[329329637,1718249452250,-500.0,0.00016712,2]
[329329638,1718249452262,-507.48708702,0.00016712,2]
[329329639,1718249452274,-500.0,0.00016712,2]
[329329640,1718249452285,-562.66,0.00016712,2]
[329329641,1718249452299,-500.0,0.00016712,2]
[329329642,1718249452310,-500.0,0.00016712,2]
[329329643,1718249452324,-500.0,0.00016712,2]
[329329644,1718249452344,-500.0,0.00016712,2]
[329329645,1718249452376,-500.0,0.00016712,2]
[329329646,1718249452389,-500.0,0.00016712,2]
[329329647,1718249452401,-478.36068504,0.00016712,2]
[329329648,1718249452412,-500.0,0.00016712,2]
[329329649,1718249452428,-500.0,0.00016712,2]
[329329650,1718249452438,-500.0,0.00016712,2]
[329329651,1718249452452,-500.0,0.00016712,2]
[329329652,1718249452464,-504.51072072,0.00016712,2]
[329329653,1718249452484,-518.59,0.00016712,2]
[329329654,1718249452514,-500.0,0.00016712,2]
[329329655,1718249452532,-500.0,0.00016712,2]
[329329656,1718249452555,-420.18544994,0.00016712,2]
[329329657,1718249452567,-500.0,0.00016712,2]
[329329658,1718249452582,-500.0,0.00016712,2]
[329329659,1718249452596,-500.0,0.00016712,2]
[329329660,1718249452607,-500.0,0.00016712,2]
[329329661,1718249452626,-500.0,0.00016712,2]
[329329662,1718249452641,-500.0,0.00016712,2]
[329329663,1718249452669,-500.0,0.00016712,2]
[329329664,1718249452685,-500.0,0.00016712,2]
[329329665,1718249452702,-500.0,0.00016712,2]
[329329666,1718249452723,-500.0,0.00016712,2]
[329329667,1718249452738,-736.48,0.00016712,2]
[329329668,1718249452755,-500.0,0.00016712,2]
[329329669,1718249452792,-515.12,0.00016712,2]
[329329670,1718249452817,-500.0,0.00016712,2]
[329329671,1718249452838,-505.26578951,0.00016712,2]
[329329672,1718249452853,-500.0,0.00016712,2]
[329329673,1718249452866,-500.0,0.00016712,2]
[329329674,1718249452877,-500.0,0.00016712,2]
[329329675,1718249452889,-500.0,0.00016712,2]
[329329676,1718249452903,-176.52940367,0.00016712,2]
[329329677,1718249452916,-500.0,0.00016712,2]
[329329678,1718249452930,-500.0,0.00016712,2]
[329329679,1718249452945,-500.0,0.00016712,2]
[329329680,1718249452958,-500.0,0.00016712,2]
[329329681,1718249452976,-500.0,0.00016712,2]
[329329682,1718249452988,-500.0,0.00016712,2]
[329329683,1718249453000,-550.41,0.00016712,2]
[329329684,1718249453021,-479.23166351,0.00016712,2]
[329329685,1718249453047,-500.0,0.00016712,2]
[329329686,1718249453063,-500.0,0.00016712,2]
[329329687,1718249453074,-1230.66,0.00016712,2]
[329329688,1718249453090,-500.0,0.00016712,2]
[329329689,1718249453101,-1510.62,0.00016712,2]
[329329690,1718249453116,-500.0,0.00016712,2]
[329329691,1718249453127,-1443.61,0.00016712,2]
[329329692,1718249453144,-745.54,0.00016712,2]
[329329693,1718249453158,-500.0,0.00016712,2]
[329329694,1718249453169,-515.20424275,0.00016712,2]
[329329695,1718249453181,-950.73,0.00016712,2]
[329329696,1718249453195,-500.0,0.00016712,2]
[329329697,1718249453206,-500.0,0.00016712,2]
[329329698,1718249453222,-500.0,0.00016712,2]
[329329699,1718249453234,-508.2248488,0.00016712,2]
[329329700,1718249453245,-1013.2,0.00016712,2]
[329329701,1718249453256,-2328.18,0.00016712,2]
[329329702,1718249453269,-500.0,0.00016712,2]
[329329703,1718249453281,-500.0,0.00016712,2]
[329329704,1718249453296,-500.0,0.00016712,2]
[329329705,1718249453320,-500.0,0.00016712,2]
[329329706,1718249453336,-3862.99,0.00016712,2]
[329329707,1718249453389,-500.0,0.00016712,2]
[329329708,1718249453407,-581.89227138,0.00016712,2]
[329329709,1718249453419,-503.48220934,0.00016712,2]
[329329710,1718249453430,-500.0,0.00016712,2]
[329329711,1718249453443,-565.49,0.00016712,2]
[329329712,1718249453454,-500.0,0.00016712,2]
[329329713,1718249453467,-500.0,0.00016712,2]
[329329714,1718249453483,-500.0,0.00016712,2]
[329329715,1718249453498,-4979.71,0.00016712,2]
[329329716,1718249453515,-781.18,0.00016712,2]
[329329717,1718249453527,-1581.89,0.00016712,2]
[329329718,1718249453539,-500.0,0.00016712,2]
[329329719,1718249453551,-500.0,0.00016712,2]
[329329720,1718249453563,-500.0,0.00016712,2]
[329329721,1718249453575,-5982.95,0.00016712,2]
[329329722,1718249453586,-1423.37,0.00016712,2]
[329329723,1718249453600,-505.60479906,0.00016712,2]
[329329724,1718249453612,-500.0,0.00016712,2]
[329329725,1718249453628,-592.19,0.00016712,2]
[329329726,1718249453640,-500.0,0.00016712,2]
[329329727,1718249453657,-500.0,0.00016712,2]
[329329728,1718249453671,-659.79,0.00016712,2]
[329329729,1718249453683,-500.0,0.00016712,2]
[329329730,1718249453698,-439.28333055,0.00016712,2]
[329329731,1718249453721,-500.0,0.00016712,2]
[329329732,1718249453741,-500.0,0.00016712,2]
[329329733,1718249453754,-500.0,0.00016712,2]
[329329734,1718249453787,-500.0,0.00016712,2]
[329329735,1718249453808,-511.52837509,0.00016712,2]
[329329736,1718249453825,-500.0,0.00016712,2]
[329329737,1718249453852,-500.0,0.00016712,2]
[329329738,1718249453866,-508.92713412,0.00016712,2]
[329329739,1718249453892,-491.23478438,0.00016712,2]
[329329740,1718249453924,-400.013277,0.00016712,2]
[329329741,1718249453935,-2304.96,0.00016712,2]
[329329742,1718249453949,-500.0,0.00016712,2]
[329329743,1718249453960,-500.0,0.00016712,2]
[329329744,1718249453974,-500.0,0.00016712,2]
[329329745,1718249453994,-500.0,0.00016712,2]
[329329746,1718249454007,-500.0,0.00016712,2]
[329329747,1718249454029,-420.0,0.00016922,2]
[329329748,1718249454040,-270.81004488,0.00016985,2]
[329329749,1718249454069,-562.09,0.00016985,2]
[329329750,1718249454097,-500.0,0.00016985,2]
[329329751,1718249454110,-500.0,0.00016986,2]
[329329752,1718249454130,-500.0,0.00016986,2]
[329329753,1718249454146,-500.0,0.00016986,2]
[329329754,1718249454169,-500.0,0.00016986,2]
[329329755,1718249454180,-562.66,0.00016986,2]
[329329756,1718249454199,-500.0,0.00016986,2]
[329329757,1718249454239,-500.0,0.00016986,2]
[329329758,1718249454260,-507.81207865,0.00016986,2]
[329329759,1718249454275,-500.0,0.00016986,2]
[329329760,1718249454308,-500.0,0.00016986,2]
[329329761,1718249454319,-518.59,0.00016986,2]
[329329762,1718249454366,-500.0,0.00016986,2]
[329329763,1718249454387,-500.0,0.00016986,2]
[329329764,1718249454399,-500.0,0.00016986,2]
[329329765,1718249454412,-512.84442164,0.00016986,2]
[329329766,1718249454422,-500.0,0.00016986,2]
[329329767,1718249454435,-500.0,0.00016986,2]
[329329768,1718249454451,-500.0,0.00016986,2]
[329329769,1718249454477,-736.48,0.00016986,2]
[329329770,1718249454505,-500.0,0.00016986,2]
[329329771,1718249454520,-515.12,0.00016986,2]
[329329772,1718249454536,-500.0,0.00016986,2]
[329329773,1718249454548,-504.32849719,0.00016986,2]
[329329774,1718249454563,-192.44892117,0.00016986,2]
[329329775,1718249454575,-500.0,0.00016986,2]
[329329776,1718249454588,-500.0,0.00016986,2]
[329329777,1718249454617,-641.60898656,0.00016986,2]
[329329778,1718249454630,-500.0,0.00016986,2]
[329329779,1718249454642,-500.0,0.00016986,2]
[329329780,1718249454654,-500.0,0.00016986,2]
[329329781,1718249454673,-550.41,0.00016986,2]
[329329782,1718249454684,-500.0,0.00016986,2]
[329329783,1718249454715,-500.0,0.00016986,2]
[329329784,1718249454740,-1230.66,0.00016986,2]
[329329785,1718249454754,-1510.62,0.00016986,2]
[329329786,1718249454780,-500.0,0.00016986,2]
[329329787,1718249454799,-1443.61,0.00016986,2]
[329329788,1718249454813,-745.54,0.00016986,2]
[329329789,1718249454825,-500.0,0.00016986,2]
[329329790,1718249454844,-950.73,0.00016986,2]
[329329791,1718249454857,-500.0,0.00016986,2]
[329329792,1718249454873,-500.0,0.00016986,2]
[329329793,1718249454885,-1013.2,0.00016986,2]
[329329794,1718249454928,-2328.18,0.00016986,2]
[329329795,1718249454946,-500.0,0.00016986,2]
[329329796,1718249454969,-500.0,0.00016986,2]
[329329797,1718249454983,-500.0,0.00016986,2]
[329329798,1718249454997,-473.47144283,0.00016986,2]
[329329799,1718249455136,-3862.99,0.00016986,2]
[329329800,1718249455148,-500.0,0.00016986,2]
[329329801,1718249455163,-500.0,0.00016986,2]
[329329802,1718249455178,-565.49,0.00016986,2]
[329329803,1718249455197,-500.0,0.00016986,2]
[329329804,1718249455217,-500.0,0.00016986,2]
[329329805,1718249455231,-500.0,0.00016986,2]
[329329806,1718249455246,-4979.71,0.00016986,2]
[329329807,1718249455262,-781.18,0.00016986,2]
[329329808,1718249455282,-1581.89,0.00016986,2]
[329329809,1718249455301,-500.0,0.00016986,2]
[329329810,1718249455335,-500.0,0.00016986,2]
[329329811,1718249455371,-500.0,0.00016986,2]
[329329812,1718249455388,-5982.95,0.00016986,2]
[329329813,1718249455438,-1423.37,0.00016986,2]
[329329814,1718249455464,-592.19,0.00016986,2]
[329329815,1718249455477,-500.0,0.00016986,2]
[329329816,1718249455489,-522.26329465,0.00016986,2]
[329329817,1718249455500,-659.79,0.00016986,2]